fUSD/lending_fUSD_20241209
["ID","MTS","AMOUNT","RATE_DAILY","PERIOD"]
[344679962,1733717452512,-500.0,9.943e-05,2]
[344679963,1733717452521,-500.0,9.943e-05,2]
[344679964,1733717452530,-500.0,9.943e-05,2]
[344679965,1733717452539,-680.55,9.943e-05,2]
[344679966,1733717452550,-500.0,9.943e-05,2]
[344679967,1733717452559,-500.0,9.943e-05,2]
[344679968,1733717452568,-500.0,9.943e-05,2]
[344679969,1733717452578,-500.0,9.943e-05,2]
[344679970,1733717452588,-500.0,9.943e-05,2]
[344679971,1733717452598,-3566.18,9.943e-05,2]
[344679972,1733717452607,-500.0,9.943e-05,2]
[344679973,1733717452617,-500.0,9.943e-05,2]
[344679974,1733717452626,-500.0,9.943e-05,2]
[344679975,1733717452635,-911.77,9.943e-05,2]
[344679976,1733717452645,-500.0,9.943e-05,2]
[344679977,1733717452655,-500.0,9.943e-05,2]
[344679978,1733717452664,-500.0,9.943e-05,2]
[344679979,1733717452675,-506.06754617,9.943e-05,2]
[344679980,1733717452685,-500.0,9.943e-05,2]
[344679981,1733717452694,-500.0,9.943e-05,2]
[344679982,1733717452704,-500.0,9.943e-05,2]
[344679983,1733717452714,-500.0,9.943e-05,2]
[344679984,1733717452723,-500.0,9.943e-05,2]
[344679985,1733717452733,-429.41,9.943e-05,2]
[344679986,1733717452743,-500.0,9.943e-05,2]
[344679987,1733717452752,-500.0,9.943e-05,2]
[344679988,1733717452761,-500.0,9.943e-05,2]
[344679989,1733717452771,-500.0,9.943e-05,2]
[344679990,1733717452781,-500.0,9.943e-05,2]
[344679991,1733717452792,-746.58,9.943e-05,2]
[344679992,1733717452801,-500.0,9.943e-05,2]
[344679993,1733717452811,-500.0,9.943e-05,2]
[344679994,1733717452821,-500.0,9.943e-05,2]
[344679995,1733717452831,-500.0,9.943e-05,2]
[344679996,1733717452840,-528.82,9.943e-05,2]
[344679997,1733717452849,-464.72,9.943e-05,2]
[344679998,1733717452858,-500.0,9.943e-05,2]
[344679999,1733717452867,-500.0,9.943e-05,2]
[344680000,1733717452877,-500.0,9.943e-05,2]
[344680001,1733717452887,-636.34,9.943e-05,2]
[344680002,1733717452896,-649.38,9.943e-05,2]
[344680003,1733717452905,-1375.45,9.943e-05,2]
[344680004,1733717452915,-500.0,9.943e-05,2]
[344680005,1733717452926,-500.0,9.943e-05,2]
[344680006,1733717452935,-500.0,9.943e-05,2]
[344680007,1733717452945,-500.0,9.943e-05,2]
[344680008,1733717452955,-500.0,9.943e-05,2]
[344680009,1733717452964,-500.0,9.943e-05,2]
[344680010,1733717452974,-500.0,9.943e-05,2]
[344680011,1733717452983,-500.0,9.943e-05,2]
[344680012,1733717452993,-649.52088042,9.943e-05,2]
[344680013,1733717453002,-500.0,9.943e-05,2]
[344680014,1733717453012,-500.0,9.943e-05,2]
[344680015,1733717453024,-368.82868361,9.943e-05,2]
[344680016,1733717453033,-500.0,9.943e-05,2]
[344680017,1733717453042,-707.68,9.943e-05,2]
[344680018,1733717453051,-500.0,9.943e-05,2]
[344680019,1733717453062,-500.0,9.943e-05,2]
[344680020,1733717453071,-887.66,9.943e-05,2]
[344680021,1733717453080,-788.67,9.943e-05,2]
[344680022,1733717453089,-500.0,9.943e-05,2]
[344680023,1733717453099,-788.67,9.943e-05,2]
[344680024,1733717453108,-500.0,9.943e-05,2]
[344680025,1733717453117,-500.0,9.943e-05,2]
[344680026,1733717453126,-612.39,9.943e-05,2]
[344680027,1733717453135,-500.0,9.943e-05,2]
[344680028,1733717453144,-500.0,9.943e-05,2]
[344680029,1733717453153,-500.0,9.943e-05,2]
[344680030,1733717453162,-500.0,9.943e-05,2]
[344680031,1733717453172,-500.0,9.943e-05,2]
[344680032,1733717453181,-500.0,9.943e-05,2]
[344680033,1733717453190,-2968.09,9.943e-05,2]
[344680034,1733717453199,-500.0,9.943e-05,2]
[344680035,1733717453210,-500.0,9.943e-05,2]
[344680036,1733717453219,-500.0,9.943e-05,2]
[344680037,1733717453228,-1108.28,9.943e-05,2]
[344680038,1733717453237,-500.0,9.943e-05,2]
[344680039,1733717453246,-500.0,9.943e-05,2]
[344680040,1733717453256,-500.0,9.943e-05,2]
[344680041,1733717453265,-500.0,9.943e-05,2]
[344680042,1733717453274,-500.0,9.943e-05,2]
[344680043,1733717453284,-992.11,9.943e-05,2]
[344680044,1733717453293,-500.0,9.943e-05,2]
[344680045,1733717453302,-6139.29,9.943e-05,2]
[344680046,1733717453311,-500.0,9.943e-05,2]
[344680047,1733717453320,-500.0,9.943e-05,2]
[344680048,1733717453329,-964.67,9.943e-05,2]
[344680049,1733717453338,-2915.52,9.943e-05,2]
[344680050,1733717453347,-2915.52,9.943e-05,2]
[344680051,1733717453356,-657.1,9.943e-05,2]
[344680052,1733717453365,-500.0,9.943e-05,2]
[344680053,1733717453374,-500.0,9.943e-05,2]
[344680054,1733717453383,-500.0,9.943e-05,2]
[344680055,1733717453392,-500.0,9.943e-05,2]
[344680056,1733717453401,-500.0,9.943e-05,2]
[344680057,1733717453411,-662.95,9.943e-05,2]
[344680058,1733717453420,-1024.25,9.943e-05,2]
[344680059,1733717453430,-662.95,9.943e-05,2]
[344680060,1733717453439,-500.0,9.943e-05,2]
[344680061,1733717453449,-500.0,9.943e-05,2]
[344680062,1733717453458,-500.0,9.943e-05,2]
[344680063,1733717453467,-500.0,9.943e-05,2]
[344680064,1733717453477,-500.0,9.943e-05,2]
[344680065,1733717453486,-798.38,9.943e-05,2]
[344680066,1733717453496,-500.0,9.943e-05,2]
[344680067,1733717453505,-500.0,9.943e-05,2]
[344680068,1733717453515,-500.0,9.943e-05,2]
[344680069,1733717453524,-1572.3,9.943e-05,2]
[344680070,1733717453534,-500.0,9.943e-05,2]
[344680071,1733717453543,-500.0,9.943e-05,2]
[344680072,1733717453553,-500.0,9.943e-05,2]
[344680073,1733717453563,-723.53,9.943e-05,2]
[344680074,1733717453573,-500.0,9.943e-05,2]
[344680075,1733717453583,-500.0,9.943e-05,2]
[344680076,1733717453592,-500.0,9.943e-05,2]
[344680077,1733717453602,-500.0,9.943e-05,2]
[344680078,1733717453611,-526.02,9.943e-05,2]
[344680079,1733717453621,-500.0,9.943e-05,2]
[344680080,1733717453631,-500.0,9.943e-05,2]
[344680081,1733717453641,-269.47786872,9.943e-05,2]
[344680082,1733717453651,-724.83,9.943e-05,2]
[344680083,1733717453743,-500.0,9.943e-05,2]
[344680084,1733717453752,-1823.26,9.943e-05,2]
[344680085,1733717453761,-500.0,9.943e-05,2]
[344680086,1733717453769,-500.0,9.943e-05,2]
[344680087,1733717453778,-500.0,9.943e-05,2]
[344680088,1733717453787,-736.37,9.943e-05,2]
[344680089,1733717453796,-500.0,9.943e-05,2]
[344680090,1733717453805,-1217.55,9.943e-05,2]
[344680091,1733717453814,-500.0,9.943e-05,2]
[344680092,1733717453823,-500.0,9.943e-05,2]
[344680093,1733717453833,-659.59,9.943e-05,2]
[344680094,1733717453843,-500.0,9.943e-05,2]
[344680095,1733717453852,-500.0,9.943e-05,2]
[344680096,1733717453862,-7344.14,9.943e-05,2]
[344680097,1733717453873,-500.0,9.943e-05,2]
[344680098,1733717453882,-500.0,9.943e-05,2]
[344680099,1733717453891,-500.0,9.943e-05,2]
[344680100,1733717453901,-500.0,9.943e-05,2]
[344680101,1733717453910,-500.0,9.943e-05,2]
[344680102,1733717453919,-1000.28,9.943e-05,2]
[344680103,1733717453929,-1000.28,9.943e-05,2]
[344680104,1733717453939,-500.0,9.943e-05,2]
[344680105,1733717453951,-500.0,9.943e-05,2]
[344680106,1733717453961,-651.3,9.943e-05,2]
[344680107,1733717453969,-610.21,9.943e-05,2]
[344680108,1733717453978,-500.0,9.943e-05,2]
[344680109,1733717453988,-500.0,9.943e-05,2]
[344680110,1733717453999,-500.0,9.943e-05,2]
[344680111,1733717454010,-500.0,9.943e-05,2]
[344680112,1733717454023,-1061.69,9.943e-05,2]
[344680113,1733717454031,-500.0,9.943e-05,2]
[344680114,1733717454040,-500.0,9.943e-05,2]
[344680115,1733717454049,-500.0,9.943e-05,2]
[344680116,1733717454058,-500.0,9.943e-05,2]
[344680117,1733717454067,-599.44,9.943e-05,2]
[344680118,1733717454076,-1634.36,9.943e-05,2]
[344680119,1733717454086,-500.0,9.943e-05,2]
[344680120,1733717454095,-4067.69403277,9.943e-05,2]
[344680121,1733717454124,-477.98596723,9.943e-05,2]
[344680122,1733717454133,-500.0,9.943e-05,2]
[344680123,1733717454142,-1476.51406277,9.943e-05,2]
[344680124,1733717454153,-3069.16593723,9.943e-05,2]
[344680125,1733717454162,-500.0,9.943e-05,2]
[344680126,1733717454170,-500.0,9.943e-05,2]
[344680127,1733717454185,-500.0,9.943e-05,2]
[344680128,1733717454194,-500.0,9.943e-05,2]
[344680129,1733717454203,-500.0,9.943e-05,2]
[344680130,1733717454213,-500.0,9.943e-05,2]
[344680131,1733717454222,-500.0,9.943e-05,2]
[344680132,1733717454231,-162.63,9.943e-05,2]
[344680133,1733717454240,-500.0,9.943e-05,2]
[344680134,1733717454249,-500.0,9.943e-05,2]
[344680135,1733717454258,-500.0,9.943e-05,2]
[344680136,1733717454267,-515.56,9.943e-05,2]
[344680137,1733717454276,-1948.76,9.943e-05,2]
[344680138,1733717454285,-515.56,9.943e-05,2]
[344680139,1733717454294,-877.57,9.943e-05,2]
[344680140,1733717454303,-500.0,9.943e-05,2]
[344680141,1733717454311,-824.66,9.943e-05,2]
[344680142,1733717454320,-500.0,9.943e-05,2]
[344680143,1733717454329,-824.66,9.943e-05,2]
[344680144,1733717454338,-570.4,9.943e-05,2]
[344680145,1733717454347,-500.0,9.944e-05,2]
[344680146,1733717454356,-500.0,9.944e-05,2]
[344680147,1733717454365,-500.0,9.944e-05,2]
[344680148,1733717454374,-500.0,9.944e-05,2]
[344680149,1733717454383,-500.0,9.944e-05,2]
[344680150,1733717454392,-500.0,9.944e-05,2]
[344680151,1733717454401,-1153.75,9.944e-05,2]
[344680152,1733717454409,-661.53,9.944e-05,2]
[344680153,1733717454419,-500.0,9.944e-05,2]
[344680154,1733717454428,-500.0,9.944e-05,2]
[344680155,1733717454438,-687.32,9.944e-05,2]
[344680156,1733717454446,-687.32,9.944e-05,2]
[344680157,1733717454456,-500.0,9.944e-05,2]
[344680158,1733717454465,-500.0,9.944e-05,2]
[344680159,1733717454474,-500.0,9.944e-05,2]
[344680160,1733717454483,-526.0,9.944e-05,2]
[344680161,1733717454493,-558.54,9.944e-05,2]
[344680162,1733717454502,-558.54,9.944e-05,2]
[344680163,1733717454511,-500.0,9.944e-05,2]
[344680164,1733717454527,-500.0,9.944e-05,2]
[344680165,1733717454545,-500.0,9.944e-05,2]
[344680166,1733717454554,-669.55,9.944e-05,2]
[344680167,1733717454563,-500.0,9.944e-05,2]
[344680168,1733717454572,-500.0,9.944e-05,2]
[344680169,1733717454581,-500.0,9.944e-05,2]
[344680170,1733717454590,-1146.39,9.944e-05,2]
[344680171,1733717454599,-409.09406277,9.944e-05,2]
[344680172,1733717454613,-737.29593723,9.944e-05,2]
[344680173,1733717454622,-500.0,9.944e-05,2]
[344680174,1733717454632,-500.0,9.944e-05,2]
[344680175,1733717454641,-500.0,9.944e-05,2]
[344680176,1733717454651,-698.87,9.944e-05,2]
[344680177,1733717454659,-500.0,9.944e-05,2]
[344680178,1733717454669,-500.0,9.944e-05,2]
[344680179,1733717454678,-392.57112246,9.944e-05,2]
[344680180,1733717454688,-506.32144487,9.944e-05,2]
[344680181,1733717454698,-500.0,9.944e-05,2]
[344680182,1733717454707,-500.0,9.944e-05,2]
[344680183,1733717454716,-451.62795921,9.944e-05,2]
[344680184,1733717454726,-1268.29,9.944e-05,2]
[344680185,1733717454736,-1268.29,9.944e-05,2]
[344680186,1733717454745,-500.0,9.944e-05,2]
[344680187,1733717454755,-500.0,9.944e-05,2]
[344680188,1733717454765,-782.54,9.944e-05,2]
[344680189,1733717454774,-861.2612352,9.944e-05,2]
[344680190,1733717454786,-56.3387648,9.944e-05,2]
[344680191,1733717454795,-917.6,9.944e-05,2]
[344680192,1733717454805,-500.0,9.944e-05,2]
[344680193,1733717454814,-500.0,9.944e-05,2]
[344680194,1733717454824,-500.0,9.944e-05,2]
[344680195,1733717454833,-1486.37,9.944e-05,2]
[344680196,1733717454843,-1486.37,9.944e-05,2]
[344680197,1733717454853,-500.0,9.944e-05,2]
[344680198,1733717454862,-500.0,9.944e-05,2]
[344680199,1733717454871,-500.0,9.944e-05,2]
[344680200,1733717454880,-1180.3212352,9.944e-05,2]
[344680201,1733717454913,-1688.68685231,9.944e-05,2]
[344680202,1733717454947,-23.48191249,9.944e-05,2]
[344680203,1733717454957,-397.09,9.944e-05,2]
[344680204,1733717454968,-156.66856194,9.944e-05,2]
[344680205,1733717454978,-500.0,9.944e-05,2]
[344680206,1733717454988,-500.0,9.944e-05,2]
[344680207,1733717454998,-500.0,9.944e-05,2]
[344680208,1733717455008,-500.0,9.944e-05,2]
[344680209,1733717455021,-105.6772166,9.944e-05,2]
[344680210,1733717455605,-46.79082962,9.944e-05,2]
[344680211,1733717455615,-241.52917088,9.944e-05,2]
[344680212,1733717455647,-937.270788,8.986e-05,2]
[344680213,1733717455659,-22962.729212,8.986e-05,2]
[344680214,1733717455668,-258.47082912,9.944e-05,2]
[344680215,1733717455678,-940.72,9.944e-05,2]
[344680216,1733717455687,-940.72,9.944e-05,2]
[344680217,1733717455697,-500.0,9.944e-05,2]
[344680218,1733717455706,-500.0,9.944e-05,2]
[344680219,1733717455715,-500.0,9.944e-05,2]
[344680220,1733717455725,-1689.94,9.944e-05,2]
[344680221,1733717455735,-856.72,9.944e-05,2]
[344680222,1733717455744,-856.72,9.944e-05,2]
[344680223,1733717455753,-597.15322398,9.944e-05,2]
[344680224,1733717455762,-2225.32,9.944e-05,2]
[344680225,1733717455772,-500.0,9.944e-05,2]
[344680226,1733717455782,-500.0,9.944e-05,2]
[344680227,1733717455791,-500.0,9.944e-05,2]
[344680228,1733717455800,-956.5,9.944e-05,2]
[344680229,1733717455809,-500.0,9.944e-05,2]
[344680230,1733717455818,-500.0,9.944e-05,2]
[344680231,1733717455828,-500.0,9.944e-05,2]
[344680232,1733717455837,-328.85,9.944e-05,2]
[344680233,1733717455846,-1535.43,9.944e-05,2]
[344680234,1733717455856,-1535.43,9.944e-05,2]
[344680235,1733717455866,-507.40289908,9.944e-05,2]
[344680236,1733717455875,-529.43,9.944e-05,2]
[344680237,1733717455884,-500.0,9.944e-05,2]
[344680238,1733717455894,-688.31,9.944e-05,2]
[344680239,1733717455904,-500.0,9.944e-05,2]
[344680240,1733717455913,-579.34,9.944e-05,2]
[344680241,1733717455923,-584.94,9.944e-05,2]
[344680242,1733717455932,-517.39,9.944e-05,2]
[344680243,1733717455941,-532.55,9.944e-05,2]
[344680244,1733717455950,-607.68,9.944e-05,2]
[344680245,1733717455959,-607.68,9.944e-05,2]
[344680246,1733717455968,-500.0,9.944e-05,2]
[344680247,1733717455978,-643.13,9.944e-05,2]
[344680248,1733717455987,-500.0,9.944e-05,2]
[344680249,1733717455996,-721.97,9.944e-05,2]
[344680250,1733717456005,-858.31,9.944e-05,2]
[344680251,1733717456016,-512.81,9.944e-05,2]
[344680252,1733717456027,-512.81,9.944e-05,2]
[344680253,1733717456037,-500.0,9.944e-05,2]
[344680254,1733717456046,-500.0,9.944e-05,2]
[344680255,1733717456055,-636.65,9.944e-05,2]
[344680256,1733717456066,-1760.72,9.944e-05,2]
[344680257,1733717456076,-1760.72,9.944e-05,2]
[344680258,1733717456085,-500.0,9.944e-05,2]
[344680259,1733717456096,-500.0,9.944e-05,2]
[344680260,1733717456107,-1695.34,9.944e-05,2]
[344680261,1733717456118,-500.0,9.944e-05,2]
[344680262,1733717456128,-500.0,9.944e-05,2]
[344680263,1733717456137,-524.79,9.944e-05,2]
[344680264,1733717456146,-783.21,9.944e-05,2]
[344680265,1733717456156,-783.21,9.944e-05,2]
[344680266,1733717456165,-500.0,9.944e-05,2]
[344680267,1733717456175,-500.0,9.944e-05,2]
[344680268,1733717456188,-500.0,9.944e-05,2]
[344680269,1733717456198,-500.0,9.944e-05,2]
[344680270,1733717456209,-500.0,9.944e-05,2]
[344680271,1733717456219,-500.0,9.944e-05,2]
[344680272,1733717456233,-500.0,9.944e-05,2]
[344680273,1733717456243,-500.0,9.944e-05,2]
[344680274,1733717456252,-500.0,9.944e-05,2]
[344680275,1733717456263,-500.0,9.944e-05,2]
[344680276,1733717456273,-500.0,9.944e-05,2]
[344680277,1733717456282,-500.0,9.944e-05,2]
[344680278,1733717456292,-500.0,9.944e-05,2]
[344680279,1733717456302,-500.0,9.944e-05,2]
[344680280,1733717456311,-500.0,9.944e-05,2]
[344680281,1733717456320,-362.05,9.944e-05,2]
[344680282,1733717456330,-698.88,9.944e-05,2]
[344680283,1733717456339,-698.88,9.944e-05,2]
[344680284,1733717456348,-500.0,9.944e-05,2]
[344680285,1733717456358,-543.92924271,9.944e-05,2]
[344680286,1733717456367,-626.0,9.944e-05,2]
[344680287,1733717456376,-500.0,9.944e-05,2]
[344680288,1733717456385,-971.66,9.944e-05,2]
[344680289,1733717456395,-971.66,9.944e-05,2]
[344680290,1733717456404,-500.0,9.944e-05,2]
[344680291,1733717456413,-1123.01,9.944e-05,2]
[344680292,1733717456424,-1123.01,9.944e-05,2]
[344680293,1733717456437,-500.0,9.944e-05,2]
[344680294,1733717456449,-500.0,9.944e-05,2]
[344680295,1733717456460,-500.0,9.944e-05,2]
[344680296,1733717456470,-500.0,9.944e-05,2]
[344680297,1733717456480,-500.0,9.944e-05,2]
[344680298,1733717456490,-500.0,9.944e-05,2]
[344680299,1733717456499,-697.22,9.944e-05,2]
[344680300,1733717456508,-500.0,9.944e-05,2]
[344680301,1733717456518,-500.0,9.944e-05,2]
[344680302,1733717456527,-1117.34,9.944e-05,2]
[344680303,1733717456536,-1117.34,9.944e-05,2]
[344680304,1733717456546,-500.0,9.944e-05,2]
[344680305,1733717456555,-500.0,9.944e-05,2]
[344680306,1733717456566,-500.0,9.944e-05,2]
[344680307,1733717456574,-500.0,9.944e-05,2]
[344680308,1733717456583,-785.56,9.944e-05,2]
[344680309,1733717456592,-785.56,9.944e-05,2]
[344680310,1733717456602,-500.0,9.944e-05,2]
[344680311,1733717456612,-500.0,9.944e-05,2]
[344680312,1733717456621,-194.08,9.944e-05,2]
[344680313,1733717456631,-761.89,9.944e-05,2]
[344680314,1733717456641,-761.89,9.944e-05,2]
[344680315,1733717456650,-500.0,9.944e-05,2]
[344680316,1733717456659,-1475.56,9.944e-05,2]
[344680317,1733717456669,-500.0,9.944e-05,2]
[344680318,1733717456679,-500.0,9.944e-05,2]
[344680319,1733717456688,-500.0,9.944e-05,2]
[344680320,1733717456698,-956.91,9.944e-05,2]
[344680321,1733717456707,-956.91,9.944e-05,2]
[344680322,1733717456717,-500.0,9.944e-05,2]
[344680323,1733717456726,-500.0,9.944e-05,2]
[344680324,1733717456736,-649.12,9.944e-05,2]
[344680325,1733717456746,-500.0,9.944e-05,2]
[344680326,1733717456755,-500.0,9.944e-05,2]
[344680327,1733717456765,-500.0,9.944e-05,2]
[344680328,1733717456774,-500.0,9.944e-05,2]
[344680329,1733717456783,-377.34,9.944e-05,2]
[344680330,1733717456793,-758.5,9.944e-05,2]
[344680331,1733717456802,-758.5,9.944e-05,2]
[344680332,1733717456812,-1022.79,9.944e-05,2]
[344680333,1733717456825,-775.53,9.944e-05,2]
[344680334,1733717456834,-1022.79,9.944e-05,2]
[344680335,1733717456844,-500.0,9.944e-05,2]
[344680336,1733717456854,-188.74,9.944e-05,2]
[344680337,1733717456864,-1432.34,9.944e-05,2]
[344680338,1733717456873,-1432.34,9.944e-05,2]
[344680339,1733717456883,-500.0,9.944e-05,2]
[344680340,1733717456892,-500.0,9.944e-05,2]
[344680341,1733717456901,-500.0,9.944e-05,2]
[344680342,1733717456911,-500.16919759,9.944e-05,2]
[344680343,1733717456924,-500.0,9.944e-05,2]
[344680344,1733717456933,-514.09,9.944e-05,2]
[344680345,1733717456942,-500.0,9.944e-05,2]
[344680346,1733717456951,-505.32318945,9.944e-05,2]
[344680347,1733717456960,-626.7,9.944e-05,2]
[344680348,1733717456970,-626.7,9.944e-05,2]
[344680349,1733717456980,-500.0,9.944e-05,2]
[344680350,1733717456990,-269.33,9.944e-05,2]
[344680351,1733717457001,-500.0,9.944e-05,2]
[344680352,1733717457010,-500.0,9.944e-05,2]
[344680353,1733717457024,-701.17,9.944e-05,2]
[344680354,1733717457031,-500.0,9.944e-05,2]
[344680355,1733717457037,-701.17,9.944e-05,2]
[344680356,1733717457044,-500.0,9.944e-05,2]
[344680357,1733717457051,-500.0,9.944e-05,2]
[344680358,1733717457060,-500.0,9.944e-05,2]
[344680359,1733717457069,-500.0,9.944e-05,2]
[344680360,1733717457078,-500.0,9.944e-05,2]
[344680361,1733717457087,-717.6,9.944e-05,2]
[344680362,1733717457097,-717.6,9.944e-05,2]
[344680363,1733717457109,-1398.67,9.944e-05,2]
[344680364,1733717457120,-500.0,9.944e-05,2]
[344680365,1733717457132,-500.0,9.944e-05,2]
[344680366,1733717457142,-500.0,9.944e-05,2]
[344680367,1733717457152,-177.35,9.944e-05,2]
[344680368,1733717457161,-2119.4,9.944e-05,2]
[344680369,1733717457294,-730.58,9.944e-05,2]
[344680370,1733717457303,-730.58,9.944e-05,2]
[344680371,1733717457312,-500.0,9.944e-05,2]
[344680372,1733717457321,-500.0,9.944e-05,2]
[344680373,1733717457330,-500.0,9.944e-05,2]
[344680374,1733717457339,-500.0,9.944e-05,2]
[344680375,1733717457348,-500.0,9.944e-05,2]
[344680376,1733717457357,-500.0,9.944e-05,2]
[344680377,1733717457366,-500.0,9.944e-05,2]
[344680378,1733717457375,-500.0,9.944e-05,2]
[344680379,1733717457387,-500.0,9.944e-05,2]
[344680380,1733717457396,-531.8,9.944e-05,2]
[344680381,1733717457410,-531.8,9.944e-05,2]
[344680382,1733717457426,-562.81,9.944e-05,2]
[344680383,1733717457435,-562.81,9.944e-05,2]
[344680384,1733717457445,-500.0,9.944e-05,2]
[344680385,1733717457454,-500.0,9.944e-05,2]
[344680386,1733717457463,-500.0,9.944e-05,2]
[344680387,1733717457472,-500.0,9.944e-05,2]
[344680388,1733717457481,-500.0,9.944e-05,2]
[344680389,1733717457490,-500.0,9.944e-05,2]
[344680390,1733717457500,-500.0,9.944e-05,2]
[344680391,1733717457509,-500.0,9.944e-05,2]
[344680392,1733717457518,-604.87,9.944e-05,2]
[344680393,1733717457528,-519.5,9.944e-05,2]
[344680394,1733717457538,-604.87,9.944e-05,2]
[344680395,1733717457548,-519.5,9.944e-05,2]
[344680396,1733717457557,-500.0,9.944e-05,2]
[344680397,1733717457568,-575.57,9.944e-05,2]
[344680398,1733717457579,-3188.92,9.944e-05,2]
[344680399,1733717457590,-327.14,9.944e-05,2]
[344680400,1733717457604,-238.07109092,9.944e-05,2]
[344680401,1733717457614,-572.14,9.944e-05,2]
[344680402,1733717457623,-572.14,9.944e-05,2]
[344680403,1733717457632,-500.0,9.944e-05,2]
[344680404,1733717457641,-500.0,9.944e-05,2]
[344680405,1733717457650,-547.55,9.944e-05,2]
[344680406,1733717457659,-547.55,9.944e-05,2]
[344680407,1733717457668,-540.27,9.944e-05,2]
[344680408,1733717457677,-543.18,9.944e-05,2]
[344680409,1733717457686,-540.27,9.944e-05,2]
[344680410,1733717457694,-500.0,9.944e-05,2]
[344680411,1733717457703,-500.0,9.944e-05,2]
[344680412,1733717457712,-500.0,9.944e-05,2]
[344680413,1733717457722,-500.0,9.944e-05,2]
[344680414,1733717457731,-527.36598456,9.944e-05,2]
[344680415,1733717457741,-500.0,9.944e-05,2]
[344680416,1733717457750,-500.0,9.944e-05,2]
[344680417,1733717457759,-500.0,9.944e-05,2]
[344680418,1733717457769,-500.0,9.944e-05,2]
[344680419,1733717457778,-814.77,9.944e-05,2]
[344680420,1733717457788,-814.77,9.944e-05,2]
[344680421,1733717457797,-500.0,9.944e-05,2]
[344680422,1733717457806,-624.55,9.944e-05,2]
[344680423,1733717457815,-500.0,9.944e-05,2]
[344680424,1733717457824,-500.0,9.944e-05,2]
[344680425,1733717457833,-500.0,9.944e-05,2]
[344680426,1733717457842,-500.0,9.944e-05,2]
[344680427,1733717457852,-782.21,9.944e-05,2]
[344680428,1733717457862,-782.21,9.944e-05,2]
[344680429,1733717457871,-840.23,9.944e-05,2]
[344680430,1733717457879,-840.23,9.944e-05,2]
[344680431,1733717457888,-500.0,9.944e-05,2]
[344680432,1733717457898,-500.0,9.944e-05,2]
[344680433,1733717457908,-552.08,9.944e-05,2]
[344680434,1733717457920,-552.08,9.944e-05,2]
[344680435,1733717457933,-658.45,9.944e-05,2]
[344680436,1733717457945,-658.45,9.944e-05,2]
[344680437,1733717457954,-500.0,9.944e-05,2]
[344680438,1733717457963,-500.0,9.944e-05,2]
[344680439,1733717457973,-533.65,9.944e-05,2]
[344680440,1733717457984,-2775.61,9.944e-05,2]
[344680441,1733717457995,-2775.61,9.944e-05,2]
[344680442,1733717458004,-500.0,9.944e-05,2]
[344680443,1733717458013,-500.0,9.944e-05,2]
[344680444,1733717458027,-598.45,9.944e-05,2]
[344680445,1733717458036,-500.0,9.944e-05,2]
[344680446,1733717458045,-500.0,9.944e-05,2]
[344680447,1733717458054,-500.0,9.944e-05,2]
[344680448,1733717458064,-500.0,9.944e-05,2]
[344680449,1733717458073,-500.0,9.944e-05,2]
[344680450,1733717458082,-500.0,9.944e-05,2]
[344680451,1733717458091,-500.0,9.944e-05,2]
[344680452,1733717458100,-607.77,9.944e-05,2]
[344680453,1733717458109,-536.64,9.944e-05,2]
[344680454,1733717458119,-500.0,9.944e-05,2]
[344680455,1733717458128,-4299.98,9.944e-05,2]
[344680456,1733717458137,-4299.98,9.944e-05,2]
[344680457,1733717458147,-500.0,9.944e-05,2]
[344680458,1733717458156,-500.0,9.944e-05,2]
[344680459,1733717458165,-530.0859498,9.944e-05,2]
[344680460,1733717458174,-500.0,9.944e-05,2]
[344680461,1733717458183,-755.06,9.944e-05,2]